bitfinex/quotes_ETHUSD_20230404
["timestamp","ask_amount","ask_price","bid_price","bid_amount"]
[1680586868685,0.23,1809.6,1809.3,1.77505206]
[1680586869678,0.23,1809.6,1809.3,1.99612206]
[1680586869879,0.23,1809.6,1809.3,2.5346353]
[1680586876353,0.22636024,1809.6,1809.3,2.5346353]
[1680586878178,0.22636024,1809.6,1809.3,2.3135653]
[1680586878377,0.22636024,1809.6,1809.3,2.3115653]
[1680586878594,0.22636024,1809.6,1809.3,2.5326353]
[1680586878916,0.22636024,1809.6,1809.3,2.3135653]
[1680586879218,0.44740024,1809.6,1809.3,1.77505206]
[1680586879518,1.13640024,1809.6,1809.3,1.7693798]
[1680586879676,1.13640024,1809.6,1809.3,0.8633798]
[1680586879996,0.91536024,1809.6,1809.3,0.8633798]
[1680586880199,0.91536024,1809.6,1809.4,0.74640054]
[1680586880386,1.13640024,1809.6,1809.4,0.74640054]
[1680586880587,0.91536024,1809.6,1809.4,0.74640054]
[1680586881129,0.91536024,1809.6,1809.2,2.92590366]
[1680586882035,4.28347797,1809.6,1809.2,1.99613206]
[1680586882333,4.28347797,1809.6,1809.2,0.86905206]
[1680586882491,4.50451797,1809.6,1809.2,0.86905206]
[1680586882668,4.28347797,1809.6,1809.2,0.86905206]
[1680586882872,4.28347797,1809.6,1809.2,1.7693798]
[1680586883189,0.4283478,1809.5,1809.2,1.77505206]
[1680586883534,0.23,1809.4,1809.2,1.7693798]
[1680586883695,4.50651797,1809.6,1809.2,0.8633798]
[1680586883898,4.28347797,1809.6,1809.2,1.7693798]
[1680586884198,0.4283478,1809.5,1809.2,1.7693798]
[1680586884398,0.23,1809.4,1809.2,1.7693798]
[1680586884886,0.23,1809.5,1809.2,1.7693798]
[1680586885673,0.23,1809.5,1809.1,2.94087531]
[1680586886119,0.23,1809.5,1809.1,0.88402371]
[1680586886120,0.45105,1809.5,1809.1,0.88402371]
[1680586886287,1.01271677,1809.5,1809.1,1.79002371]
[1680586887531,4.68678895,1809.5,1809.1,0.00567226]
[1680586887676,0.6897489,1809.4,1809.1,0.00567226]
[1680586887873,0.23,1809.3,1809.1,0.00567226]
[1680586888522,0.23,1809.3,1809.0,5.47215206]
[1680586889224,0.23,1809.3,1809.0,4.60877226]
[1680586889451,0.23,1809.3,1809.0,4.60677226]
[1680586889653,0.23,1809.3,1809.0,0.00567226]
[1680586889837,1.01097389,1809.3,1808.9,2.24101366]
[1680586890241,1.23205389,1809.3,1808.9,0.86905206]
[1680586890405,0.12320539,1809.2,1808.9,0.00567226]
[1680586890604,0.23,1809.1,1808.9,0.00567226]
[1680586891139,0.23,1809.1,1808.9,0.00167226]
[1680586891357,0.23,1809.1,1808.8,5.59377226]
[1680586893188,0.23,1809.1,1808.8,0.91367226]
[1680586893334,0.35602954,1809.1,1808.8,0.906]
[1680586895151,0.35602954,1809.1,1808.9,0.61041492]
[1680586896239,0.35602954,1809.1,1808.8,0.91167226]
[1680586896240,6.43905172,1809.1,1808.8,0.90967226]
[1680586896404,0.22112,1808.9,1808.7,0.90767226]
[1680586896608,0.23,1808.8,1808.5,0.96905206]
[1680586897565,12.8441015,1809.0,1808.5,0.96905206]
[1680586897566,0.23,1808.9,1808.5,0.96905206]
[1680586897708,1.12990347,1808.9,1808.5,0.96905206]
[1680586899319,1.12990347,1808.9,1808.5,0.10567226]
[1680586899320,1.35103347,1808.9,1808.5,0.10567226]
[1680586899657,4.11705565,1808.9,1808.5,0.10167226]
[1680586899807,1.31884557,1808.8,1808.5,0.10567226]
[1680586900006,0.917,1808.7,1808.5,0.10567226]
[1680586900208,1.13815,1808.7,1808.5,0.1]
[1680586900466,0.113815,1808.6,1808.5,0.1]
[1680586900651,0.343815,1808.6,1808.5,0.1]
[1680586902781,0.23,1808.7,1808.5,0.1]
[1680586903858,0.45115,1808.7,1808.5,0.1]
[1680586904058,0.23,1808.7,1808.5,0.1]
[1680586905147,0.45115,1808.7,1808.5,0.1]
[1680586905352,1.21531235,1808.7,1808.5,0.1]
[1680586905652,0.99416235,1808.7,1808.5,0.1]
[1680586907663,6.76902218,1808.6,1808.4,0.10167226]
[1680586907990,7.68702218,1808.5,1808.3,0.09832774]
[1680586908361,3.686,1808.4,1808.3,0.09832774]
[1680586908636,6.68202218,1808.4,1808.3,0.09832774]
[1680586908837,10.00102218,1808.4,1808.3,0.09832774]
[1680586909039,11.08575896,1808.4,1808.3,0.09832774]
[1680586909343,11.30694896,1808.4,1808.3,0.09832774]
[1680586909725,11.08575896,1808.4,1808.3,0.09832774]
[1680586910232,8.08575896,1808.4,1808.3,0.09832774]
[1680586912008,7.39975896,1808.4,1808.3,0.09832774]
[1680586913149,7.40750471,1808.4,1808.3,0.09832774]
[1680586913450,7.62869471,1808.4,1808.3,0.09832774]
[1680586924568,7.40750471,1808.4,1808.3,0.09832774]
[1680586925860,7.35750471,1808.4,1808.3,0.09832774]
[1680586926260,7.57869471,1808.4,1808.3,0.09832774]
[1680586927839,7.35750471,1808.4,1808.3,0.09832774]
[1680586932776,7.57869471,1808.4,1808.3,0.09832774]
[1680586933760,7.35750471,1808.4,1808.3,0.09832774]
[1680586934648,7.57869471,1808.4,1808.3,0.09832774]
[1680586935088,7.35750471,1808.4,1808.3,0.09832774]
[1680586935650,7.49727876,1808.4,1808.3,0.09832774]
[1680586936697,7.71846876,1808.4,1808.3,0.09832774]
[1680586936894,7.49727876,1808.4,1808.3,0.09832774]
[1680586937390,7.71846876,1808.4,1808.3,0.09832774]
[1680586939498,7.49727876,1808.4,1808.3,0.09832774]
[1680586939705,7.71846876,1808.4,1808.3,0.09832774]
[1680586940317,7.49727876,1808.4,1808.3,0.09832774]
[1680586940610,7.71846876,1808.4,1808.3,0.09832774]
[1680586942186,7.71846876,1808.4,1808.3,0.52773757]
[1680586944092,7.49727876,1808.4,1808.3,0.52773757]
[1680586944616,7.71846876,1808.4,1808.3,0.52773757]
[1680586949106,7.71618326,1808.4,1808.3,0.52773757]
[1680586952751,8.40518326,1808.4,1808.3,0.52773757]
[1680586955108,7.71618326,1808.4,1808.3,0.52773757]
[1680586956951,15.34856326,1808.4,1808.3,0.52773757]
[1680586957166,14.90618326,1808.4,1808.3,0.52773757]
[1680586957568,9.09018326,1808.4,1808.3,0.52773757]
[1680586958126,9.09018326,1808.4,1808.3,0.09832774]
[1680586959268,9.53256326,1808.4,1808.3,0.09832774]
[1680586962274,8.15856326,1808.4,1808.3,0.09832774]
[1680586964458,7.71618326,1808.4,1808.3,0.09832774]
[1680586965183,0.37177405,1808.4,1808.3,0.09832774]
[1680586965388,0.13977405,1808.4,1808.3,0.09832774]
[1680586966250,0.13977405,1808.4,1808.3,0.54367231]
[1680586966757,0.36977405,1808.4,1808.3,0.54367231]
[1680586969882,12.49773198,1808.4,1808.3,0.54367231]
[1680586970087,12.49973198,1808.4,1808.3,0.54367231]
[1680586973976,12.27854198,1808.4,1808.3,0.54367231]
[1680586974180,12.27516027,1808.4,1808.3,0.54367231]
[1680586977044,12.93873027,1808.4,1808.3,0.54367231]
[1680586977244,12.27516027,1808.4,1808.3,0.54367231]
[1680586977783,12.49635027,1808.4,1808.3,0.54367231]
[1680586978088,12.27516027,1808.4,1808.3,0.54367231]
[1680586978571,12.49635027,1808.4,1808.3,0.54367231]
[1680586979697,12.27516027,1808.4,1808.3,0.54367231]
[1680586980269,12.49635027,1808.4,1808.3,0.54367231]
[1680586980577,12.27516027,1808.4,1808.3,0.54367231]
[1680586981303,12.49635027,1808.4,1808.3,0.54367231]
[1680586982705,15.93873027,1808.4,1808.3,0.54367231]
[1680586984171,15.93873027,1808.4,1808.3,0.66003674]
[1680586984377,17.31673027,1808.4,1808.3,0.66003674]
[1680586984695,15.27516027,1808.4,1808.3,0.66003674]
[1680586984898,15.49635027,1808.4,1808.3,0.66003674]
[1680586996412,15.93873027,1808.4,1808.3,0.66003674]
[1680586997423,15.49635027,1808.4,1808.3,0.66003674]
[1680587003855,9.45916027,1808.4,1808.3,0.66003674]
[1680587004220,15.49635027,1808.4,1808.3,0.66003674]
[1680587009520,15.35995793,1808.4,1808.3,0.66003674]
[1680587012051,15.50141468,1808.4,1808.3,0.66003674]
[1680587017624,9.68541468,1808.4,1808.3,0.66003674]
[1680587017830,15.50141468,1808.4,1808.3,0.66003674]
[1680587018140,15.50141468,1808.4,1808.3,0.65646331]
[1680587018345,0.002,1808.4,1808.3,1.56666331]
[1680587018681,0.002,1808.7,1808.3,3.60506331]
[1680587018970,0.57980725,1808.9,1808.6,0.688]
[1680587019277,0.95976259,1808.9,1808.6,0.688]
[1680587019457,4.27676259,1808.9,1808.6,0.688]
[1680587019661,6.08302218,1808.9,1808.6,0.688]
[1680587019832,6.08502218,1808.9,1808.6,0.90916]
[1680587020035,6.08502218,1808.9,1808.6,0.778916]
[1680587020575,6.08502218,1808.9,1808.6,1.000076]
[1680587020776,6.08502218,1808.9,1808.6,0.778916]
[1680587021271,0.23,1808.8,1808.6,0.778916]
[1680587022143,0.23,1808.8,1808.6,0.090916]
[1680587023560,0.23,1808.8,1808.6,0.312076]
[1680587026977,0.23,1808.8,1808.7,0.688]
[1680587028653,0.23,1808.8,1808.6,0.090916]
[1680587030157,3.00376793,1808.8,1808.7,0.58964009]
[1680587030355,6.32076793,1808.8,1808.7,0.58964009]
[1680587030687,6.32276793,1808.8,1808.7,0.58964009]
[1680587030839,6.95584472,1808.8,1808.7,0.58964009]
[1680587031286,6.95584472,1808.8,1808.5,0.689]
[1680587031579,6.32276793,1808.8,1808.5,0.689]
[1680587032196,6.32276793,1808.8,1808.4,1.81685226]
[1680587032594,6.32276793,1808.8,1808.4,0.90885226]
[1680587034709,6.08302218,1808.7,1808.4,0.68767226]
[1680587035009,0.23,1808.6,1808.4,0.90885226]
[1680587038703,0.22603823,1808.6,1808.4,0.90318]
[1680587042431,0.22603823,1808.6,1808.4,0.22118]
[1680587044447,0.22603823,1808.6,1808.4,1.85227848]
[1680587044598,0.22603823,1808.6,1808.4,2.29465848]
[1680587044797,0.22603823,1808.6,1808.4,2.98165848]
[1680587045436,0.22603823,1808.6,1808.5,0.80819934]
[1680587053037,5.22603823,1808.6,1808.5,0.80819934]
[1680587053356,5.22803823,1808.6,1808.5,0.80819934]
[1680587053849,5.22803823,1808.6,1808.5,0.58702934]
[1680587054054,5.22803823,1808.6,1808.5,0.80819934]
[1680587054236,5.22803823,1808.6,1808.5,0.58702934]
[1680587055763,11.31106041,1808.6,1808.5,0.58702934]
[1680587055940,12.44296645,1808.6,1808.5,0.58702934]
[1680587056146,12.44296645,1808.6,1808.4,0.22118]
[1680587056330,11.31106041,1808.6,1808.4,0.22118]
[1680587057350,11.31106041,1808.6,1808.5,0.58702934]
[1680587060070,11.30794286,1808.6,1808.5,0.58702934]
[1680587065502,5.002,1808.6,1808.5,0.80819934]
[1680587065650,5.002,1808.6,1808.5,3.04325934]
[1680587065849,5.002,1808.6,1808.5,2.62378551]
[1680587066054,5.002,1808.6,1808.5,2.61978551]
[1680587066605,5.002,1808.6,1808.5,2.18143551]
[1680587066944,5.232,1808.6,1808.5,2.18143551]
[1680587067401,5.232,1808.6,1808.5,2.17943551]
[1680587067769,5.232,1808.6,1808.5,2.17743551]
[1680587068096,5.232,1808.6,1808.5,2.17943551]
[1680587068398,5.232,1808.6,1808.5,2.17743551]
[1680587070798,5.232,1808.6,1808.5,2.17943551]
[1680587071802,5.232,1808.6,1808.5,2.17743551]
[1680587071966,5.232,1808.6,1808.5,2.17943551]
[1680587072301,5.232,1808.6,1808.5,2.86843551]
[1680587072457,5.232,1808.6,1808.5,2.87043551]
[1680587076771,5.232,1808.6,1808.5,2.64926551]
[1680587077296,5.232,1808.6,1808.5,2.87043551]
[1680587079029,5.232,1808.6,1808.5,1.96243551]
[1680587079232,5.232,1808.6,1808.5,1.95676325]
[1680587082188,5.232,1808.6,1808.5,1.26776325]
[1680587083432,5.22986024,1808.6,1808.5,1.26776325]
[1680587085246,5.22986024,1808.6,1808.5,0.80819934]
[1680587085547,5.22986024,1808.6,1808.5,0.58702934]
[1680587087450,7.99588242,1808.6,1808.5,0.58702934]
[1680587087654,11.32062817,1808.6,1808.5,0.58702934]
[1680587088100,11.32062817,1808.6,1808.3,0.09475431]
[1680587088301,4.128085,1808.5,1808.3,0.09475431]
[1680587089051,2.99602218,1808.5,1808.3,0.09475431]
[1680587089214,2.99602218,1808.5,1808.4,0.40555152]
[1680587090359,2.99602218,1808.5,1808.3,0.09475431]
[1680587091231,2.99602218,1808.5,1808.4,0.40725953]
[1680587092244,2.99602218,1808.5,1808.3,0.09475431]
[1680587092410,5.01560599,1808.6,1808.3,0.09475431]
[1680587092604,5.00760599,1808.6,1808.3,0.09475431]
[1680587093722,0.23,1808.5,1808.3,0.09475431]
[1680587098523,0.23,1808.5,1808.3,0.31594431]
[1680587100442,0.23,1808.5,1808.3,0.09475431]
[1680587105318,4.4024606,1808.5,1808.4,0.43059086]
[1680587106366,4.4024606,1808.5,1808.3,0.09475431]
[1680587107350,6.08302218,1808.4,1808.3,0.09475431]
[1680587107551,6.31502218,1808.4,1808.3,0.09475431]
[1680587111765,6.31502218,1808.4,1808.3,0.31595431]
[1680587113767,6.31502218,1808.4,1808.3,0.09475431]
[1680587114984,12.35221218,1808.4,1808.3,0.09475431]
[1680587115566,15.35221218,1808.4,1808.3,0.09475431]
[1680587121735,15.13102218,1808.4,1808.3,0.09475431]
[1680587121938,15.35221218,1808.4,1808.3,0.09475431]
[1680587122271,16.04121218,1808.4,1808.3,0.09475431]
[1680587125199,15.13102218,1808.4,1808.3,0.09475431]
[1680587131722,15.35221218,1808.4,1808.3,0.09475431]
[1680587132383,15.13102218,1808.4,1808.3,0.09475431]
[1680587135394,15.35221218,1808.4,1808.3,0.09475431]
[1680587135792,15.13102218,1808.4,1808.3,0.09475431]
[1680587142246,9.31502218,1808.4,1808.3,0.09475431]
[1680587143646,15.13102218,1808.4,1808.3,0.09475431]
[1680587143846,9.31502218,1808.4,1808.3,0.09475431]
[1680587147767,9.31502218,1808.4,1808.3,0.09475431]
[1680587149362,15.13102218,1808.4,1808.3,0.09475431]
[1680587151764,9.31502218,1808.4,1808.3,0.09475431]
[1680587152124,15.13102218,1808.4,1808.3,0.09475431]
[1680587152864,9.31502218,1808.4,1808.3,0.09475431]
[1680587153778,6.319,1808.4,1808.3,0.09475431]
[1680587154097,0.002,1808.4,1808.3,0.09475431]
[1680587154265,3.325,1808.5,1808.3,0.09475431]
[1680587155298,0.23,1808.4,1808.3,0.09475431]
[1680587166416,0.23,1808.4,1808.3,0.77775431]
[1680587166621,0.23,1808.4,1808.3,1.15472405]
[1680587166917,5.14431978,1808.6,1808.3,2.50512405]
[1680587166918,0.23,1808.5,1808.3,2.50512405]
[1680587167103,0.22748554,1808.5,1808.3,3.36850385]
[1680587167272,0.22748554,1808.5,1808.4,1.57157]
[1680587167478,0.22748554,1808.5,1808.4,1.90878461]
[1680587168111,0.22748554,1808.5,1808.4,2.59778461]
[1680587168311,0.22748554,1808.5,1808.4,2.59945687]
[1680587168474,0.22748554,1808.5,1808.4,2.60145687]
[1680587168675,0.22748554,1808.5,1808.4,2.59778461]
[1680587169401,0.22748554,1808.5,1808.4,2.60345687]
[1680587170117,0.22748554,1808.5,1808.4,2.61843432]
[1680587172218,0.22748554,1808.5,1808.4,3.30043432]
[1680587183315,0.22748554,1808.5,1808.4,1.92943432]
[1680587183516,0.22748554,1808.5,1808.4,1.48705432]
[1680587187763,0.22748554,1808.5,1808.4,1.92943432]
[1680587189270,4.99986024,1808.6,1808.4,3.30243432]
[1680587189467,4.99786024,1808.6,1808.5,1.01824343]
[1680587189761,4.99786024,1808.6,1808.5,2.15108569]
[1680587189944,4.99786024,1808.6,1808.5,2.15308569]
[1680587190181,4.99431253,1808.6,1808.5,2.14741343]
[1680587196416,4.99431253,1808.6,1808.5,1.92624343]
[1680587196603,5.22431253,1808.6,1808.5,1.92624343]
[1680587196756,5.22631253,1808.6,1808.5,2.14741343]
[1680587196959,5.22631253,1808.6,1808.5,1.92624343]
[1680587197488,5.22631253,1808.6,1808.5,2.14741343]
[1680587202087,5.22631253,1808.6,1808.5,1.45941343]
[1680587203573,5.22631253,1808.6,1808.5,1.12917]
[1680587210779,5.22631253,1808.6,1808.5,1.57152]
[1680587212524,5.22631253,1808.6,1808.5,2.4348998]
[1680587213403,5.2236171,1808.6,1808.5,2.4348998]
[1680587213604,5.2236171,1808.6,1808.5,1.9925498]
[1680587213817,5.2236171,1808.6,1808.5,2.30915491]
[1680587214205,5.2236171,1808.6,1808.5,2.75150491]
[1680587219734,4.9936171,1808.6,1808.5,2.75150491]
[1680587219892,4.9916171,1808.6,1808.5,2.75150491]
[1680587221737,4.9916171,1808.6,1808.5,2.30915491]
[1680587222113,4.9916171,1808.6,1808.5,2.75150491]
[1680587224409,4.9916171,1808.6,1808.5,2.30915491]
[1680587226028,4.9916171,1808.6,1808.5,1.12917]
[1680587226029,5.2216171,1808.6,1808.5,1.12917]
[1680587226337,5.2236171,1808.6,1808.5,1.9925498]
[1680587226537,5.2236171,1808.6,1808.5,1.7713798]
[1680587226712,5.2236171,1808.6,1808.5,1.9925498]
[1680587228452,5.2236171,1808.6,1808.5,1.12917]
[1680587228624,5.2236171,1808.6,1808.5,1.9925498]
[1680587233255,5.2236171,1808.6,1808.5,1.12917]
[1680587233755,5.2236171,1808.6,1808.5,1.9925498]
[1680587234834,5.2236171,1808.6,1808.5,1.7713798]
[1680587235523,5.2236171,1808.6,1808.5,1.9925498]
[1680587236426,5.2208971,1808.6,1808.5,1.9925498]
[1680587246264,5.2208971,1808.6,1808.5,1.12917]
[1680587246953,5.2208971,1808.6,1808.5,1.9925498]
[1680587250064,5.2208971,1808.6,1808.5,2.79424417]
[1680587250362,5.2208971,1808.6,1808.5,3.08738823]
[1680587251362,5.2208971,1808.6,1808.5,3.10236485]
[1680587251523,5.2208971,1808.6,1808.5,3.96810607]
[1680587256162,5.2208971,1808.6,1808.5,2.81725447]
[1680587257428,5.21830141,1808.6,1808.5,2.81158221]
[1680587259180,4.98830141,1808.6,1808.5,3.09669259]
[1680587259361,4.98630141,1808.6,1808.5,2.64051325]
[1680587259669,4.98630141,1808.6,1808.5,2.63851325]
[1680587260368,4.98630141,1808.6,1808.5,4.08206527]
[1680587266605,4.98630141,1808.6,1808.5,5.23444242]
[1680587266785,4.98630141,1808.6,1808.5,5.23644242]
[1680587268171,4.98630141,1808.6,1808.5,3.7948904]
[1680587268368,4.98630141,1808.6,1808.5,3.78693035]
[1680587268688,4.99430141,1808.6,1808.5,3.78721814]
[1680587269201,4.99430141,1808.6,1808.5,5.22877016]
[1680587269498,4.99430141,1808.6,1808.5,5.23077016]
[1680587270303,4.99430141,1808.6,1808.5,3.78921814]
[1680587270600,4.99430141,1808.6,1808.5,3.78721814]
[1680587272206,4.99430141,1808.6,1808.5,3.78521814]
[1680587273016,4.99430141,1808.6,1808.5,12.36724032]
[1680587273172,4.99430141,1808.6,1808.5,13.05824032]
[1680587273597,4.99430141,1808.6,1808.5,13.34741519]
[1680587274619,4.99430141,1808.6,1808.5,14.49920697]
[1680587275391,4.99430141,1808.6,1808.5,13.81020697]
[1680587278402,4.99430141,1808.6,1808.5,12.36865495]
[1680587279225,4.99430141,1808.6,1808.5,13.81020697]
[1680587279921,4.99430141,1808.6,1808.5,12.65841519]
[1680587280123,4.99430141,1808.6,1808.5,13.81012703]
[1680587280336,4.99430141,1808.6,1808.5,13.81008081]
[1680587280541,4.99430141,1808.6,1808.5,12.65841519]
[1680587282041,4.99430141,1808.6,1808.5,13.34741519]
[1680587282211,0.007,1808.7,1808.6,7.15074152]
[1680587282412,4.8589,1809.2,1808.6,14.96522922]
[1680587282413,0.008,1809.1,1808.6,14.96522922]
[1680587282616,0.23,1809.1,1808.9,1.26469814]
[1680587282812,4.8689,1809.2,1809.0,1.67426981]
[1680587283045,4.8669,1809.2,1809.0,3.15396795]
[1680587283243,4.8669,1809.2,1809.1,0.904]
[1680587283420,0.008,1809.2,1809.1,1.5673]
[1680587283725,0.008,1809.4,1809.1,1.5673]
[1680587283959,0.11800001,1809.5,1809.1,1.5673]
[1680587284098,0.11800001,1809.5,1809.3,0.66322]
[1680587284538,0.11800001,1809.5,1809.3,1.56722]
[1680587284748,0.23,1809.4,1809.3,0.66322]
[1680587284898,0.238,1809.4,1809.3,0.66322]
[1680587291928,0.23,1809.4,1809.3,0.66322]
[1680587292130,0.23,1809.4,1809.3,1.56722]
[1680587297862,0.23,1809.4,1809.3,1.12507]
[1680587305802,0.22619733,1809.4,1809.3,1.12507]
[1680587307304,0.22619733,1809.4,1809.3,1.28329108]
[1680587313367,0.22619733,1809.4,1809.3,1.72544108]
[1680587318014,0.11000001,1809.5,1809.3,1.72544108]
[1680587318216,0.11000001,1809.5,1809.3,6.69564108]
[1680587318392,0.11000001,1809.5,1809.4,1.56719]
[1680587318579,0.11000001,1809.5,1809.4,2.23695111]
[1680587323332,0.11000001,1809.5,1809.4,0.904]
[1680587323536,0.34000001,1809.5,1809.4,0.904]
[1680587324831,0.34000001,1809.5,1809.3,0.22107]
[1680587325037,0.23,1809.4,1809.3,0.22107]
[1680587326803,0.22767612,1809.4,1809.2,7.15302896]
[1680587327042,0.22767612,1809.4,1809.2,7.15102896]
[1680587327800,0.22767612,1809.4,1809.2,1.49666896]
[1680587328128,0.22767612,1809.4,1809.2,1.49466896]
[1680587331752,0.22767612,1809.4,1809.2,0.91897082]
[1680587332251,0.22767612,1809.4,1809.2,1.49466896]
[1680587332611,0.22767612,1809.4,1809.2,0.91897082]
[1680587338945,4.45473612,1809.4,1809.1,0.904]
[1680587339241,0.44547361,1809.3,1809.1,0.904]
[1680587339440,0.23,1809.2,1809.1,0.904]
[1680587341621,0.23,1809.3,1809.1,0.904]
[1680587342120,0.919,1809.3,1809.1,0.904]
[1680587343023,0.23,1809.3,1809.1,0.904]
[1680587343225,0.23,1809.3,1809.0,1.12511]
[1680587343467,0.23,1809.3,1809.0,0.904]
[1680587343674,0.23,1809.3,1809.1,0.904]
[1680587344883,0.99610449,1808.9,1808.7,0.22315]
[1680587345082,0.99610449,1808.9,1808.6,30.69438168]
[1680587345083,7.68102218,1808.8,1808.5,2.6492233]
[1680587345279,7.68102218,1808.8,1808.5,0.227676]
[1680587345280,4.695,1808.6,1808.5,0.227676]
[1680587345563,4.93274575,1808.6,1808.5,0.227676]
[1680587345922,5.60423575,1808.6,1808.5,0.227676]
[1680587346180,6.16685932,1808.6,1808.5,0.227676]
[1680587346722,8.9328815,1808.6,1808.5,0.227676]
[1680587347168,8.4395415,1808.6,1808.5,0.227676]
[1680587347479,9.6585415,1808.6,1808.5,0.227676]
[1680587350028,5.33662357,1808.6,1808.5,0.227676]
[1680587350224,4.776,1808.6,1808.5,0.227676]
[1680587350536,4.774,1808.6,1808.5,0.227676]
[1680587352064,3.555,1808.6,1808.5,0.227676]
[1680587353751,0.008,1808.6,1808.5,0.227676]
[1680587353951,0.22116,1808.6,1808.3,0.09475431]
[1680587354955,0.23,1808.5,1808.3,0.09475431]
[1680587359193,0.23,1808.6,1808.3,0.54675431]
[1680587359361,0.238,1808.6,1808.3,0.54675431]
[1680587359561,0.23,1808.6,1808.3,0.54675431]
[1680587366712,0.607615,1808.6,1808.3,0.54675431]
[1680587366920,0.828775,1808.6,1808.3,0.54675431]
[1680587367207,0.828775,1808.6,1808.3,0.09475431]
[1680587368467,3.317,1808.5,1808.3,0.09475431]
[1680587368669,0.23,1808.4,1808.3,0.09475431]
[1680587369003,0.23,1808.4,1808.3,0.54675431]
[1680587369380,0.23,1808.4,1808.3,0.31595431]
[1680587369578,0.23,1808.4,1808.3,1.27386505]
[1680587370170,0.008,1808.7,1808.3,1.27386505]
[1680587370399,0.238,1808.7,1808.3,0.83146505]
[1680587370603,0.238,1808.7,1808.4,0.452]
[1680587371617,0.238,1808.7,1808.4,0.67318]
[1680587371788,0.238,1808.7,1808.4,0.452]
[1680587372370,0.238,1808.7,1808.4,0.67318]
[1680587372704,0.238,1808.7,1808.4,0.452]
[1680587373768,0.23,1808.7,1808.4,1.1987055]
[1680587373983,0.23,1808.7,1808.4,0.7563255]
[1680587374579,0.23,1808.7,1808.4,0.77130295]
[1680587378213,0.23,1808.7,1808.4,0.55012295]
[1680587379732,0.23,1808.7,1808.4,0.46697745]
[1680587380930,0.23,1808.7,1808.4,0.01497745]
[1680587381287,0.23,1808.7,1808.4,0.46697745]
[1680587383051,0.23,1808.7,1808.4,0.23615745]
[1680587383254,0.23,1808.7,1808.4,0.46697745]
[1680587383907,0.23,1808.7,1808.4,0.01497745]
[1680587385348,4.48580598,1808.7,1808.3,0.31594431]
[1680587385729,4.48580598,1808.7,1808.3,0.76794431]
[1680587385910,4.49380598,1808.7,1808.3,0.76794431]
[1680587390287,3.547,1808.7,1808.3,1.21034431]
[1680587390487,3.547,1808.7,1808.3,2.07472599]
[1680587390683,3.555,1808.7,1808.3,2.07472599]
[1680587390844,3.547,1808.7,1808.3,2.07472599]
[1680587392956,3.555,1808.7,1808.3,2.07472599]
[1680587393356,3.547,1808.7,1808.3,2.07472599]
[1680587394005,3.555,1808.7,1808.3,2.07472599]
[1680587396658,3.555,1808.7,1808.3,3.22723489]
[1680587397921,3.547,1808.7,1808.3,3.22723489]
[1680587398070,3.555,1808.7,1808.3,3.22723489]
[1680587399214,3.555,1808.7,1808.3,2.55347325]
[1680587399511,3.555,1808.7,1808.3,3.70598215]
[1680587400206,3.555,1808.7,1808.4,0.452]
[1680587400512,3.555,1808.7,1808.4,1.53755168]
[1680587402333,3.555,1808.7,1808.4,0.452]
[1680587402539,0.3555,1808.6,1808.4,0.452]
[1680587402835,0.23,1808.5,1808.3,1.41113599]
[1680587403434,0.23,1808.5,1808.3,0.54675431]
[1680587409301,0.23,1808.5,1808.3,0.09475431]
[1680587409511,0.69005,1808.5,1808.3,0.09475431]
[1680587415098,0.23,1808.5,1808.3,1.41113599]
[1680587415297,0.008,1808.7,1808.3,2.07472599]
[1680587415619,8.92891975,1808.8,1808.3,2.07472599]
[1680587415620,0.01,1808.8,1808.7,0.00279458]
[1680587415840,15.3013,1809.0,1808.7,0.00279458]
[1680587416039,15.3033,1809.0,1808.7,0.00279458]
[1680587416240,8.5853,1809.0,1808.7,0.00279458]
[1680587416453,8.5853,1809.0,1808.7,0.22394458]
[1680587416765,3.327,1809.0,1808.7,0.22394458]
[1680587416947,3.325,1809.0,1808.7,0.22394458]
[1680587417474,3.325,1809.0,1808.7,0.00279458]
[1680587417679,0.23,1808.9,1808.7,0.00279458]
[1680587417888,0.23,1808.9,1808.7,0.22394458]
[1680587418372,0.238,1808.9,1808.7,0.22394458]
[1680587418786,0.008,1809.0,1808.7,2.18089089]
[1680587419076,0.008,1809.2,1808.8,1.142]
[1680587419387,0.13525584,1809.4,1808.9,1.54787]
[1680587419548,0.14325584,1809.4,1809.0,0.154787]
[1680587419750,0.14325584,1809.4,1809.1,0.2211]
[1680587420132,0.14325584,1809.4,1809.0,0.154787]
[1680587420388,0.14325584,1809.4,1809.0,0.375887]
[1680587420564,0.23,1809.3,1809.0,0.375887]
[1680587420729,0.22686867,1809.3,1809.0,0.375887]
[1680587421281,0.22686867,1809.3,1809.0,0.818117]
[1680587421494,0.22686867,1809.3,1809.1,0.0818117]
[1680587421781,0.22686867,1809.3,1809.1,0.3029117]
[1680587422782,0.22686867,1809.3,1809.1,0.29893896]
[1680587423588,0.13525584,1809.4,1809.1,0.29893896]
[1680587424384,0.11800001,1809.5,1809.1,1.19313896]
[1680587424542,0.11000001,1809.5,1809.3,0.22107]
[1680587424733,0.11000001,1809.5,1809.2,1.2345739]
[1680587425374,0.11000001,1809.5,1809.2,0.7923939]
[1680587428051,0.11000001,1809.5,1809.2,0.452]
[1680587428268,0.23,1809.4,1809.2,0.452]
[1680587428486,0.23,1809.4,1809.1,0.6731]
[1680587428977,0.23,1809.4,1809.2,0.452]
[1680587429492,0.23,1809.4,1809.1,0.452]
[1680587429788,0.23,1809.4,1809.1,2.7596187]
[1680587430148,0.23,1809.4,1809.2,0.452]
[1680587432441,0.23,1809.4,1809.3,0.58674999]
[1680587438409,0.23,1809.4,1809.1,0.22109]
[1680587438624,0.23,1809.4,1809.1,2.04833017]
[1680587439295,0.23,1809.4,1809.2,0.57995852]
[1680587439693,0.45106,1809.4,1809.2,0.57995852]
[1680587439889,0.23,1809.4,1809.2,0.57995852]
[1680587440327,0.23,1809.4,1809.0,15.34641]
[1680587440649,0.23,1809.4,1809.0,14.6733]
[1680587440793,0.23,1809.4,1809.0,14.89441]
[1680587440993,0.23,1809.4,1809.0,15.34641]
[1680587441290,0.23,1809.4,1809.0,16.925876]
[1680587442846,0.2262533,1809.4,1809.0,16.931876]
[1680587450234,0.2262533,1809.4,1809.1,0.5835105]
[1680587450922,0.2262533,1809.4,1809.1,0.8046105]